bitfinex/quotes_BTCUSD_20251224
["timestamp","ask_amount","ask_price","bid_price","bid_amount"]
[1766607727966,0.01144,87668.0,87658.0,0.01140797]
[1766607728356,0.02284667,87668.0,87657.0,0.0114081]
[1766607728556,0.01144,87668.0,87658.0,0.01140797]
[1766607728903,0.02284667,87668.0,87658.0,0.01140797]
[1766607729056,0.02284667,87668.0,87657.0,0.0114081]
[1766607729481,0.01144,87668.0,87657.0,0.0114081]
[1766607729703,0.01144,87668.0,87658.0,0.01140797]
[1766607729883,0.01140654,87669.0,87658.0,0.01140797]
[1766607730250,0.02284667,87668.0,87657.0,0.0114081]
[1766607730629,0.01144,87668.0,87658.0,0.01140797]
[1766607731173,0.02284667,87668.0,87657.0,0.0114081]
[1766607731791,0.14518667,87668.0,87657.0,0.0114081]
[1766607731990,0.13378,87668.0,87658.0,0.01140797]
[1766607732193,0.14518667,87668.0,87657.0,0.0114081]
[1766607733090,0.14518667,87668.0,87658.0,0.01140797]
[1766607733296,0.14518667,87668.0,87657.0,0.0114081]
[1766607734518,0.13374667,87668.0,87658.0,0.01140797]
[1766607734720,0.13378,87668.0,87658.0,0.01140797]
[1766607736160,0.14518667,87668.0,87657.0,0.0228481]
[1766607736455,0.14518667,87668.0,87658.0,0.01140797]
[1766607736665,0.14518667,87668.0,87657.0,0.0228481]
[1766607739946,0.13378,87668.0,87658.0,0.01140797]
[1766607741359,0.14518667,87668.0,87657.0,0.0228481]
[1766607741772,0.13378,87668.0,87658.0,0.01140797]
[1766607742760,0.14518667,87668.0,87657.0,0.0228481]
[1766607742960,0.14518667,87668.0,87658.0,0.01140797]
[1766607743312,0.14518667,87668.0,87657.0,0.0228481]
[1766607744464,0.13378,87668.0,87658.0,0.01140797]
[1766607745308,0.14518667,87668.0,87657.0,0.0228481]
[1766607745515,0.14518667,87668.0,87658.0,0.01140797]
[1766607746201,0.14518667,87668.0,87657.0,0.0228481]
[1766607746778,0.0114068,87667.0,87657.0,0.01144]
[1766607747029,0.0114068,87667.0,87657.0,0.0228481]
[1766607747555,0.1337468,87667.0,87657.0,0.0228481]
[1766607747895,0.1337468,87667.0,87657.0,0.01144]
[1766607748310,0.01140693,87666.0,87657.0,0.01144]
[1766607749074,0.01140732,87663.0,87657.0,0.01144]
[1766607749273,0.11657,87662.0,87657.0,0.01144]
[1766607749433,0.12797745,87662.0,87657.0,0.01144]
[1766607749629,0.12797758,87661.0,87657.0,0.01144]
[1766607749874,0.11657,87661.0,87657.0,0.01144]
[1766607750222,0.12797758,87661.0,87657.0,0.01144]
[1766607750424,0.11657,87661.0,87657.0,0.01144]
[1766607753853,0.01140706,87665.0,87657.0,0.01144]
[1766607754081,0.11657,87664.0,87661.0,0.000549]
[1766607754510,0.11657,87664.0,87657.0,0.01144]
[1766607759659,0.12797719,87664.0,87657.0,0.01144]
[1766607759837,0.11657,87663.0,87657.0,0.01144]
[1766607764117,0.11657,87662.0,87651.0,0.05704409]
[1766607764320,0.11657,87662.0,87653.0,0.01140862]
[1766607764903,0.11657,87662.0,87652.0,0.01144]
[1766607765110,0.11657,87662.0,87653.0,0.01140862]
[1766607765825,0.11657,87662.0,87652.0,0.01144]
[1766607765973,0.11657,87662.0,87653.0,0.01140862]
[1766607768048,0.01140693,87666.0,87662.0,0.000549]
[1766607768178,0.13236693,87666.0,87662.0,0.000549]
[1766607768387,0.01140706,87665.0,87662.0,0.000549]
[1766607768744,0.12096,87664.0,87655.0,0.01140836]
[1766607768944,0.12096,87664.0,87654.0,0.01140849]
[1766607769145,0.12096,87664.0,87655.0,0.01140836]
[1766607769441,0.12096,87664.0,87654.0,0.01140849]
[1766607770145,0.12096,87664.0,87655.0,0.01140836]
[1766607770646,0.12096,87664.0,87654.0,0.01140849]
[1766607772068,0.13236719,87664.0,87652.0,0.01144]
[1766607772476,0.12096,87662.0,87653.0,0.01140862]
[1766607773066,0.12096,87662.0,87654.0,0.01140849]
[1766607773272,0.12096,87662.0,87653.0,0.01140862]
[1766607773430,0.12096,87662.0,87654.0,0.01140849]
[1766607775659,0.12096,87662.0,87653.0,0.01140862]
[1766607775992,0.12096,87662.0,87654.0,0.01140849]
[1766607776914,0.12096,87662.0,87653.0,0.01140862]
[1766607777450,0.12096,87662.0,87654.0,0.01140849]
[1766607777855,0.12096,87662.0,87652.0,0.02284875]
[1766607778094,0.13236745,87662.0,87652.0,0.01144]
[1766607778324,0.12096,87660.0,87652.0,0.02284875]
[1766607778725,0.12096,87660.0,87652.0,0.01144]
[1766607779125,0.12096,87660.0,87652.0,0.02284875]
[1766607779939,0.12096,87660.0,87653.0,0.01140862]
[1766607780474,0.12096,87660.0,87652.0,0.02284875]
[1766607780612,0.12096,87660.0,87653.0,0.01140862]
[1766607781451,0.12096,87660.0,87652.0,0.01144]
[1766607781659,0.12096,87660.0,87652.0,0.02284875]
[1766607781853,0.12096,87660.0,87652.0,0.01144]
[1766607782053,0.12096,87660.0,87653.0,0.01140862]
[1766607782685,0.01140732,87663.0,87653.0,0.01140862]
[1766607783044,0.01140732,87663.0,87652.0,0.02284875]
[1766607783209,0.01140732,87663.0,87653.0,0.01140862]
[1766607783413,0.12021,87662.0,87652.0,0.01144]
[1766607783615,0.12021,87662.0,87653.0,0.01140862]
[1766607784576,0.12021,87662.0,87652.0,0.02284875]
[1766607785067,0.12021,87662.0,87653.0,0.01140862]
[1766607785622,0.12021,87662.0,87652.0,0.02284875]
[1766607785789,0.12021,87662.0,87653.0,0.01140862]
[1766607790249,0.12021,87662.0,87652.0,0.02284875]
[1766607790459,0.12021,87662.0,87653.0,0.01140862]
[1766607790870,0.12021,87662.0,87652.0,0.02284875]
[1766607791436,0.12021,87662.0,87653.0,0.01140862]
[1766607791746,0.12021,87662.0,87652.0,0.02284875]
[1766607792917,0.01140771,87660.0,87652.0,0.01144]
[1766607793167,0.13161771,87660.0,87652.0,0.01144]
[1766607793563,0.13161771,87660.0,87650.0,0.01144]
[1766607793770,0.12021,87660.0,87650.0,0.01144]
[1766607793925,0.12021,87660.0,87650.0,0.02284901]
[1766607794125,0.12021,87660.0,87651.0,0.01140888]
[1766607794862,0.12021,87660.0,87652.0,0.01140875]
[1766607795064,0.12021,87660.0,87650.0,0.02284901]
[1766607795264,0.12021,87660.0,87651.0,0.01140888]
[1766607795496,0.12021,87660.0,87650.0,0.02284901]
[1766607796257,0.13161771,87660.0,87650.0,0.02284901]
[1766607796457,0.12021,87660.0,87650.0,0.02284901]
[1766607798615,0.13161771,87660.0,87650.0,0.01144]
[1766607799731,0.12021,87660.0,87650.0,0.02284901]
[1766607799935,0.12021,87660.0,87651.0,0.01140888]
[1766607801559,0.12021,87660.0,87652.0,0.01140875]
[1766607802536,0.12021,87660.0,87650.0,0.02284901]
[1766607802732,0.12021,87660.0,87652.0,0.01140875]
[1766607803053,0.12021,87660.0,87651.0,0.01140888]
[1766607803478,0.12021,87660.0,87652.0,0.01140875]
[1766607804048,0.12021,87660.0,87653.0,0.01140862]
[1766607804246,0.12021,87660.0,87651.0,0.01140888]
[1766607805150,0.12021,87660.0,87652.0,0.01140875]
[1766607805374,0.12021,87660.0,87651.0,0.01140888]
[1766607805569,0.12021,87660.0,87652.0,0.01140875]
[1766607806153,0.12021,87660.0,87643.0,0.06085]
[1766607806336,0.12021,87655.0,87643.0,0.01140992]
[1766607806541,0.12021,87654.0,87644.0,0.01140979]
[1766607806981,0.13161849,87654.0,87643.0,0.01140992]
[1766607807192,0.12021,87652.0,87642.0,0.02285005]
[1766607807426,0.13161875,87652.0,87642.0,0.01144]
[1766607807607,0.12021,87652.0,87642.0,0.01144]
[1766607808037,0.12021,87652.0,87643.0,0.01140992]
[1766607808230,0.12021,87652.0,87644.0,0.01140979]
[1766607808667,0.12021,87652.0,87645.0,0.01140966]
[1766607809014,0.12021,87652.0,87642.0,0.02285005]
[1766607809451,0.13161875,87652.0,87642.0,0.02285005]
[1766607809768,0.13161875,87652.0,87642.0,0.01144]
[1766607809919,0.13201888,87651.0,87642.0,0.01144]
[1766607810354,0.01140901,87650.0,87642.0,0.01144]
[1766607810563,0.12061,87651.0,87642.0,0.01144]
[1766607810947,0.12061,87651.0,87642.0,0.02285005]
[1766607811142,0.12061,87651.0,87642.0,0.01144]
[1766607812536,0.12061,87651.0,87642.0,0.02285005]
[1766607812965,0.12061,87651.0,87642.0,0.01144]
[1766607813374,0.13201888,87651.0,87642.0,0.01144]
[1766607813624,0.01140901,87650.0,87642.0,0.01144]
[1766607813970,0.13201888,87651.0,87642.0,0.01144]
[1766607814349,0.12061,87651.0,87642.0,0.01144]
[1766607814703,0.12061,87651.0,87642.0,0.02285005]
[1766607814900,0.13201888,87651.0,87642.0,0.01144]
[1766607815960,0.13201888,87651.0,87641.0,0.01141018]
[1766607816119,0.12061,87651.0,87642.0,0.01144]
[1766607816953,0.12061,87651.0,87642.0,0.02285005]
[1766607817153,0.12061,87651.0,87642.0,0.01144]
[1766607817470,0.12061,87651.0,87642.0,0.02285005]
[1766607818600,0.12061,87651.0,87643.0,0.01140992]
[1766607818756,0.12061,87651.0,87642.0,0.02285005]
[1766607819157,0.12061,87651.0,87643.0,0.01140992]
[1766607819711,0.12061,87651.0,87642.0,0.02285005]
[1766607820197,0.12061,87651.0,87643.0,0.01140992]
[1766607820597,0.12061,87651.0,87644.0,0.01140979]
[1766607820806,0.12061,87651.0,87643.0,0.01140992]
[1766607821011,0.12047,87667.0,87655.0,0.01140836]
[1766607821215,0.12047,87667.0,87657.0,0.0114081]
[1766607821391,0.01144,87666.0,87660.0,0.01140771]
[1766607821573,0.01144,87666.0,87659.0,0.01140784]
[1766607821775,0.01144,87666.0,87660.0,0.01140771]
[1766607822001,0.01144,87666.0,87658.0,0.01140797]
[1766607822156,0.01144,87666.0,87659.0,0.01140784]
[1766607822870,0.01144,87666.0,87660.0,0.01140771]
[1766607823530,0.01144,87666.0,87659.0,0.01140784]
[1766607823731,0.01144,87666.0,87660.0,0.01140771]
[1766607824136,0.01144,87666.0,87659.0,0.01140784]
[1766607824526,0.13191,87666.0,87659.0,0.01140784]
[1766607825077,0.13191,87666.0,87658.0,0.01140797]
[1766607825597,0.13191,87666.0,87659.0,0.01140784]
[1766607826782,0.13191,87666.0,87657.0,0.0114081]
[1766607826987,0.13191,87666.0,87658.0,0.01140797]
[1766607833372,0.13191,87666.0,87657.0,0.0114081]
[1766607833578,0.13191,87666.0,87658.0,0.01140797]
[1766607835044,0.13191,87666.0,87657.0,0.0114081]
[1766607835256,0.13191,87666.0,87658.0,0.01140797]
[1766607836750,0.13191,87666.0,87657.0,0.0114081]
[1766607837705,0.14331693,87666.0,87655.0,0.01162026]
[1766607837910,0.14331693,87666.0,87656.0,0.01140823]
[1766607838138,0.12047,87666.0,87656.0,0.01140823]
[1766607838344,0.11596,87664.0,87655.0,0.0002119]
[1766607838752,0.11596,87664.0,87655.0,0.01162026]
[1766607838912,0.11596,87664.0,87656.0,0.01140823]
[1766607839870,0.01144,87663.0,87657.0,0.0114081]
[1766607841150,0.01144,87663.0,87656.0,0.01140823]
[1766607841360,0.01144,87663.0,87657.0,0.0114081]
[1766607841879,0.01144,87663.0,87655.0,0.0002119]
[1766607842083,0.11596,87661.0,87648.0,0.01140927]
[1766607842257,0.11596,87661.0,87651.0,0.02284888]
[1766607842464,0.11596,87661.0,87651.0,0.01144]
[1766607842665,0.11596,87661.0,87651.0,0.02284888]
[1766607842864,0.12736758,87661.0,87651.0,0.02284888]
[1766607843068,0.12736758,87661.0,87652.0,0.01140875]
[1766607843069,0.11596,87661.0,87652.0,0.01140875]
[1766607843269,0.01144,87663.0,87652.0,0.01140875]
[1766607843474,0.1274,87663.0,87654.0,0.01140849]
[1766607844205,0.1274,87663.0,87653.0,0.01140862]
[1766607844756,0.1274,87663.0,87654.0,0.01140849]
[1766607844956,0.1274,87663.0,87653.0,0.01140862]
[1766607845848,0.1274,87663.0,87654.0,0.01140849]
[1766607846070,0.1274,87663.0,87655.0,0.01140836]
[1766607846268,0.1274,87663.0,87654.0,0.01140849]
[1766607846572,0.1274,87663.0,87653.0,0.01140862]
[1766607847995,0.1274,87663.0,87652.0,0.06845207]
[1766607848199,0.1274,87663.0,87653.0,0.01140862]
[1766607848420,0.1274,87663.0,87655.0,0.01140836]
[1766607848749,0.1274,87663.0,87653.0,0.06845126]
[1766607849258,0.1274,87663.0,87654.0,0.01140849]
[1766607850455,0.1274,87663.0,87653.0,0.06845126]
[1766607850661,0.1274,87663.0,87653.0,0.01140862]
[1766607851106,0.1274,87663.0,87654.0,0.01140849]
[1766607851747,0.13880732,87663.0,87652.0,0.01140875]
[1766607852341,0.1274,87663.0,87653.0,0.01140862]
[1766607852549,0.1274,87663.0,87655.0,0.01140836]
[1766607852965,0.1274,87663.0,87654.0,0.01140849]
[1766607853544,0.1274,87663.0,87657.0,0.0114081]
[1766607854586,0.1274,87663.0,87655.0,0.05704138]
[1766607855192,0.01144,87662.0,87654.0,0.06845064]
[1766607855396,0.01144,87662.0,87656.0,0.01140823]
[1766607855795,0.01144,87661.0,87656.0,0.01140823]
[1766607856169,0.01144,87661.0,87657.0,0.0114081]
[1766607856592,0.01144,87661.0,87656.0,0.01140823]
[1766607857740,0.01144,87661.0,87657.0,0.0114081]
[1766607858086,0.011229,87661.0,87657.0,0.0114081]
[1766607858879,0.011229,87661.0,87658.0,0.01140797]
[1766607859042,0.011229,87661.0,87659.0,0.0570392]
[1766607859250,0.011229,87661.0,87658.0,0.01140797]
[1766607859452,0.011229,87661.0,87657.0,0.0114081]
[1766607859851,0.011229,87661.0,87656.0,0.01140823]
[1766607860057,0.011229,87661.0,87657.0,0.0114081]
[1766607860453,0.011229,87661.0,87656.0,0.01140823]
[1766607860775,0.011229,87661.0,87657.0,0.0114081]
[1766607860993,0.011229,87661.0,87656.0,0.01140823]
[1766607861185,0.011229,87661.0,87655.0,0.06845014]
[1766607861378,0.011229,87661.0,87657.0,0.0114081]
[1766607861583,0.011229,87661.0,87656.0,0.01140823]
[1766607862702,0.011229,87661.0,87655.0,0.01140836]
[1766607863078,0.011229,87661.0,87656.0,0.01140823]
[1766607863670,0.011229,87661.0,87655.0,0.01140836]
[1766607863876,0.011229,87661.0,87656.0,0.01140823]
[1766607865495,0.011229,87661.0,87657.0,0.0114081]
[1766607865738,0.011229,87661.0,87656.0,0.01140823]
[1766607865923,0.01144,87660.0,87656.0,0.01140823]
[1766607866491,0.01144,87660.0,87653.0,0.01140862]
[1766607866690,0.01144,87660.0,87656.0,0.01140823]
[1766607866890,0.01144,87660.0,87654.0,0.01140849]
[1766607867086,0.01144,87660.0,87655.0,0.01140836]
[1766607868365,0.01144,87660.0,87656.0,0.01140823]
[1766607869970,0.01144,87660.0,87655.0,0.01140836]
[1766607871312,0.01144,87660.0,87656.0,0.01140823]
[1766607871589,0.01144,87660.0,87655.0,0.01140836]
[1766607872221,0.01144,87660.0,87656.0,0.01140823]
[1766607872341,0.01144,87660.0,87655.0,0.01140836]
[1766607873816,0.01144,87660.0,87656.0,0.01140823]
[1766607874231,0.01144,87660.0,87655.0,0.01140836]
[1766607875474,0.01144,87660.0,87656.0,0.01140823]
[1766607878275,0.01144,87660.0,87655.0,0.01140836]
[1766607878490,0.11567,87662.0,87656.0,0.01140823]
[1766607878697,0.01144,87661.0,87655.0,0.01140836]
[1766607879607,0.01144,87661.0,87654.0,0.01140849]
[1766607879740,0.01144,87661.0,87653.0,0.01140862]
[1766607879940,0.01144,87661.0,87654.0,0.01140849]
[1766607880316,0.01144,87661.0,87655.0,0.01140836]
[1766607880766,0.01144,87661.0,87654.0,0.01140849]
[1766607881401,0.01144,87661.0,87655.0,0.01140836]
[1766607882962,0.01144,87661.0,87654.0,0.01140849]
[1766607883215,0.01144,87661.0,87655.0,0.01140836]
[1766607884040,0.01144,87661.0,87656.0,0.01140823]
[1766607884243,0.01144,87661.0,87655.0,0.01140836]
[1766607884656,0.01144,87661.0,87654.0,0.01140849]
[1766607884865,0.01144,87661.0,87655.0,0.01140836]
[1766607885581,0.01144,87661.0,87654.0,0.01140849]
[1766607886664,0.01144,87661.0,87655.0,0.01140836]
[1766607887271,0.11567,87662.0,87655.0,0.01140836]
[1766607887450,0.01144,87661.0,87655.0,0.01140836]
[1766607887995,0.01144,87661.0,87654.0,0.01140849]
[1766607888613,0.01144,87661.0,87655.0,0.01140836]
[1766607888757,0.01144,87661.0,87651.0,0.01144]
[1766607888963,0.01144,87661.0,87653.0,0.01140862]
[1766607889164,0.01144,87661.0,87654.0,0.01140849]
[1766607890244,0.02525862,87660.0,87641.0,0.01144]
[1766607890440,0.11504,87653.0,87641.0,0.05705092]
[1766607890642,0.11504,87653.0,87640.0,0.00019463]
[1766607890643,0.01144,87652.0,87644.0,0.01140979]
[1766607890941,0.11504,87662.0,87655.0,0.01140836]
[1766607891147,0.01144,87661.0,87655.0,0.01140836]
[1766607891353,0.12648,87661.0,87652.0,0.01140875]
[1766607892118,0.12648,87661.0,87653.0,0.01140862]
[1766607892314,0.12648,87661.0,87652.0,0.01140875]
[1766607893062,0.12648,87661.0,87653.0,0.01140862]
[1766607894592,0.12648,87661.0,87654.0,0.08674957]
[1766607894739,0.01089,87661.0,87657.0,0.0114081]
[1766607895385,0.01089,87661.0,87658.0,0.01140797]
[1766607895790,0.01089,87661.0,87657.0,0.0114081]
[1766607895996,0.01089,87661.0,87656.0,0.01140823]
[1766607896206,0.01089,87661.0,87655.0,0.01140836]
[1766607896416,0.01144,87664.0,87655.0,0.01140836]
[1766607896833,0.01144,87664.0,87654.0,0.01140849]
[1766607897285,0.12648,87664.0,87654.0,0.01140849]
[1766607897486,0.11504,87664.0,87653.0,0.01140862]
[1766607897684,0.12648,87664.0,87653.0,0.01140862]
[1766607897927,0.12648,87664.0,87654.0,0.01140849]
[1766607898301,0.11504,87664.0,87654.0,0.01140849]
[1766607898617,0.12648,87664.0,87654.0,0.01140849]
[1766607900190,0.13788719,87664.0,87653.0,0.01140862]
[1766607900615,0.01140732,87663.0,87652.0,0.01140875]
[1766607900820,0.12055,87660.0,87651.0,0.01144]
[1766607900996,0.01140758,87661.0,87651.0,0.01144]
[1766607900997,0.12055,87658.0,87651.0,0.01144]
[1766607901962,0.13195797,87658.0,87651.0,0.01144]
[1766607902373,0.12055,87658.0,87651.0,0.01144]
[1766607903178,0.12055,87658.0,87652.0,0.01140875]
[1766607903492,0.12055,87658.0,87651.0,0.01144]
[1766607905525,0.01140771,87660.0,87651.0,0.01144]
[1766607905924,0.01140797,87658.0,87651.0,0.01144]
[1766607906120,0.01140771,87660.0,87651.0,0.01144]
[1766607907233,0.01140784,87659.0,87651.0,0.01144]
[1766607907847,0.01140771,87660.0,87651.0,0.01144]
[1766607908023,0.13195771,87660.0,87651.0,0.01144]
[1766607908255,0.12055,87660.0,87651.0,0.01144]
[1766607908862,0.12055,87658.0,87651.0,0.01144]
[1766607909664,0.12055,87658.0,87651.0,0.04568655]
[1766607910648,0.12055,87658.0,87651.0,0.05709543]
[1766607911389,0.12055,87658.0,87651.0,0.01144]
[1766607911669,0.12055,87658.0,87651.0,0.04568655]
[1766607912810,0.12055,87658.0,87651.0,0.01144]
[1766607913027,0.12055,87658.0,87652.0,0.03424655]
[1766607913236,0.12055,87658.0,87651.0,0.01144]
[1766607913623,0.12055,87658.0,87651.0,0.04568655]
[1766607914877,0.12055,87658.0,87651.0,0.01144]
[1766607915152,0.12055,87658.0,87652.0,0.03424655]
[1766607919052,0.01140771,87660.0,87651.0,0.01144]
[1766607919250,0.01140771,87660.0,87651.0,0.04568655]
[1766607919682,0.13195758,87661.0,87651.0,0.01144]
[1766607919894,0.13195758,87661.0,87652.0,0.03424655]
[1766607920114,0.13195771,87660.0,87649.0,0.01140914]
[1766607920327,0.13195771,87660.0,87651.0,0.01144]
[1766607920543,0.12055,87660.0,87651.0,0.01144]
[1766607920766,0.01140784,87659.0,87651.0,0.01144]
[1766607920973,0.13195771,87660.0,87651.0,0.04568655]
[1766607921184,0.01140784,87659.0,87651.0,0.04568655]
[1766607921647,0.12055,87658.0,87651.0,0.01144]
[1766607921834,0.12055,87658.0,87652.0,0.03424655]
[1766607922501,0.12055,87658.0,87651.0,0.01144]
[1766607923052,0.12055,87658.0,87651.0,0.04568655]
[1766607925639,0.13195797,87658.0,87651.0,0.03424655]
[1766607925862,0.13195797,87658.0,87644.0,0.01140979]
[1766607925863,0.121099,87651.0,87644.0,0.01140979]
[1766607926042,0.121099,87651.0,87643.0,0.01140992]
[1766607926043,0.12055,87651.0,87643.0,0.01140992]
[1766607926244,0.12055,87651.0,87644.0,0.01140979]
[1766607926462,0.12055,87651.0,87647.0,0.0114094]
[1766607926676,0.12055,87651.0,87646.0,0.01140953]
[1766607926896,0.12055,87651.0,87648.0,0.01140927]
[1766607927509,0.12055,87656.0,87648.0,0.01140927]
[1766607927716,0.12055,87654.0,87645.0,0.01140966]
[1766607927968,0.12055,87654.0,87646.0,0.01140953]
[1766607929683,0.12055,87654.0,87642.0,0.06845968]
[1766607929684,0.12229,87652.0,87643.0,0.01140992]
[1766607929907,0.000549,87646.0,87640.0,0.00019463]
[1766607930065,0.00055,87643.0,87640.0,0.00019463]
[1766607930261,0.01140953,87646.0,87640.0,0.00019463]
[1766607930715,0.03425253,87645.0,87640.0,0.00019463]
[1766607930916,0.04566219,87645.0,87640.0,0.00019463]
[1766607931068,0.04566219,87645.0,87640.0,6.3e-07]
[1766607932105,0.01140979,87644.0,87640.0,6.3e-07]
[1766607932310,0.01140966,87645.0,87640.0,6.3e-07]
[1766607932548,0.13369979,87644.0,87640.0,6.3e-07]
[1766607933731,0.01140992,87643.0,87640.0,6.3e-07]
[1766607934049,0.13369979,87644.0,87640.0,6.3e-07]
[1766607934295,0.12229,87642.0,87640.0,6.3e-07]
[1766607936001,0.01140966,87645.0,87640.0,6.3e-07]
[1766607936204,0.01140992,87643.0,87640.0,6.3e-07]
[1766607936934,0.01140979,87644.0,87640.0,6.3e-07]
[1766607938194,0.12612992,87643.0,87640.0,6.3e-07]
[1766607938446,0.11472,87641.0,87640.0,6.3e-07]
[1766607942952,0.00098295,87640.0,87632.0,0.01141135]
[1766607943206,0.00103141,87640.0,87632.0,0.01141135]
[1766607943492,0.00103141,87640.0,87631.0,0.01141148]
[1766607943880,0.00103141,87640.0,87632.0,0.01141135]
[1766607944524,0.00103141,87640.0,87631.0,0.01141148]
[1766607945721,0.00103141,87640.0,87632.0,0.01141135]
[1766607947206,0.00103141,87640.0,87630.0,0.01141161]
[1766607947408,0.00103141,87640.0,87631.0,0.01141148]
[1766607947836,0.00103141,87640.0,87630.0,0.01141161]
[1766607948797,0.00103141,87640.0,87631.0,0.01141148]
[1766607949106,0.11575141,87640.0,87630.0,0.01141161]
[1766607949492,0.11575141,87640.0,87631.0,0.01141148]
[1766607949668,0.11575141,87640.0,87630.0,0.01141161]
[1766607949873,0.11575141,87640.0,87631.0,0.01141148]
[1766607950261,0.11575141,87640.0,87630.0,0.01141161]
[1766607950466,0.11575141,87640.0,87631.0,0.01141148]
[1766607952084,0.11575141,87640.0,87630.0,0.01141161]
[1766607953428,0.11575141,87640.0,87628.0,0.01141187]
[1766607953429,0.12716172,87640.0,87628.0,0.01141187]
[1766607953648,0.01141044,87639.0,87629.0,0.01141174]
[1766607953849,0.12716172,87640.0,87629.0,0.01141174]
[1766607954622,0.01141044,87639.0,87629.0,0.01141174]
[1766607954831,0.01141044,87639.0,87628.0,0.01141187]
[1766607955025,0.11472,87638.0,87628.0,0.01141187]
[1766607955828,0.11472,87638.0,87629.0,0.01141174]
[1766607957272,0.11472,87638.0,87630.0,0.03425484]
[1766607958155,0.00098296,87637.0,87630.0,0.03425484]
[1766607961850,4.846e-05,87640.0,87630.0,0.04566645]
[1766607962046,4.846e-05,87640.0,87631.0,0.01141148]
[1766607962254,4.846e-05,87640.0,87632.0,0.01141135]
[1766607962454,4.846e-05,87640.0,87633.0,0.01141122]
[1766607962919,4.846e-05,87640.0,87632.0,0.01141135]
[1766607963536,4.846e-05,87640.0,87631.0,0.02285148]
[1766607963790,4.846e-05,87640.0,87632.0,0.01141135]
[1766607964351,4.846e-05,87640.0,87631.0,0.02285148]
[1766607964786,4.846e-05,87640.0,87632.0,0.01141135]
[1766607965507,4.846e-05,87640.0,87631.0,0.02285148]
[1766607966031,4.846e-05,87640.0,87631.0,0.01144]
[1766607966242,4.846e-05,87640.0,87631.0,0.02285148]
[1766607966438,4.846e-05,87640.0,87631.0,0.01144]
[1766607966641,4.846e-05,87640.0,87631.0,0.02285148]
[1766607967228,4.846e-05,87640.0,87631.0,0.01144]
[1766607968208,4.846e-05,87640.0,87631.0,0.02285148]
[1766607969172,4.846e-05,87640.0,87631.0,0.01144]
[1766607969361,0.12153,87638.0,87628.0,0.01141187]
[1766607970441,0.13294057,87638.0,87628.0,0.01141187]
[1766607970952,0.12153,87638.0,87628.0,0.01141187]
[1766607971605,0.13294057,87638.0,87627.0,0.05710723]
[1766607972341,0.0114107,87637.0,87627.0,0.022852]
[1766607972550,0.12153,87638.0,87627.0,0.01144]
[1766607972768,0.01145877,87640.0,87629.0,0.01141174]
[1766607973456,0.01141044,87639.0,87629.0,0.01141174]
[1766607973935,0.01144,87644.0,87639.0,0.000549]
[1766607974167,0.01144,87645.0,87639.0,0.00010479]
[1766607974413,0.01144,87648.0,87640.0,0.06806]
[1766607974640,0.01144,87649.0,87640.0,0.07947031]
[1766607974896,0.13297,87649.0,87640.0,0.01141031]
[1766607975632,0.13297,87649.0,87641.0,0.01141018]
[1766607975863,0.13297,87649.0,87640.0,0.01141031]
[1766607976624,0.12153,87649.0,87643.0,0.01140992]
[1766607976848,0.12153,87649.0,87642.0,0.01141005]
[1766607977378,0.12153,87649.0,87643.0,0.01140992]
[1766607977559,0.12153,87649.0,87642.0,0.01141005]
[1766607977947,0.12153,87649.0,87643.0,0.01140992]
[1766607978349,0.12153,87649.0,87642.0,0.01141005]
[1766607978748,0.12153,87649.0,87640.0,0.01141031]
[1766607979365,0.12153,87649.0,87639.0,0.40294693]
[1766607979570,0.12153,87649.0,87640.0,0.01141031]
[1766607979771,0.12153,87649.0,87639.0,0.40294693]
[1766607980004,0.12153,87649.0,87640.0,0.01141031]
[1766607980212,0.12153,87649.0,87639.0,0.40294693]
[1766607981334,0.13293914,87649.0,87639.0,0.40294693]
[1766607981530,0.01140888,87651.0,87640.0,0.04518]
[1766607981704,0.01140888,87651.0,87641.0,0.04518]
[1766607981904,0.01140901,87650.0,87641.0,0.04518]
[1766607982107,0.01140888,87651.0,87641.0,0.04518]
[1766607982312,0.12153,87649.0,87640.0,0.01141031]
[1766607982918,0.13293914,87649.0,87639.0,0.39153649]
[1766607985301,0.13293914,87649.0,87639.0,0.40294693]
[1766607985984,0.13293914,87649.0,87639.0,0.39153649]
[1766607987055,0.13293914,87649.0,87639.0,0.40294693]
[1766607987267,0.12153,87649.0,87639.0,0.40294693]
[1766607987697,0.12153,87649.0,87640.0,0.01141031]
[1766607988715,0.12153,87649.0,87641.0,0.01141018]
[1766607988931,0.12153,87649.0,87640.0,0.01141031]
[1766607989120,0.12153,87649.0,87642.0,0.01141005]
[1766607989259,0.12153,87649.0,87641.0,0.01141018]
[1766607993985,0.11779548,87649.0,87642.0,0.01141005]
[1766607994946,0.11779548,87649.0,87643.0,0.01140992]
[1766607995145,0.11779548,87649.0,87642.0,0.01141005]
[1766607995551,0.11779548,87649.0,87641.0,0.01141018]
[1766607995763,0.11779548,87649.0,87642.0,0.01141005]
[1766607996728,0.11779548,87649.0,87641.0,0.01141018]
[1766607997134,0.11779548,87649.0,87642.0,0.01141005]
[1766607998117,0.11779548,87649.0,87641.0,0.01141018]
[1766607998526,0.11779548,87649.0,87642.0,0.01141005]
[1766607999473,0.11779548,87649.0,87641.0,0.01141018]
[1766608000227,0.11779548,87649.0,87640.0,0.01141031]
[1766608000424,0.11779548,87649.0,87641.0,0.01141018]
[1766608000748,0.11779548,87649.0,87642.0,0.01141005]
[1766608001906,0.11779548,87649.0,87643.0,0.01140992]
[1766608002354,0.11779548,87649.0,87642.0,0.01141005]
[1766608002567,0.11779548,87649.0,87644.0,0.01140979]
[1766608002797,0.11724648,87649.0,87644.0,0.01140979]
[1766608003025,0.11724648,87649.0,87645.0,0.01140966]
[1766608005422,0.01140758,87661.0,87646.0,0.01140953]
[1766608005793,0.14753771,87660.0,87650.0,0.3914317]
[1766608006016,0.12469,87658.0,87650.0,0.3914317]
[1766608009289,0.13609797,87658.0,87650.0,0.3914317]
[1766608009657,0.12469,87658.0,87650.0,0.3914317]
[1766608009857,0.12469,87655.0,87648.0,0.01144]
[1766608010058,0.12469,87655.0,87647.0,0.01144]
[1766608010059,0.13609836,87655.0,87647.0,0.01144]
[1766608010299,0.13609836,87655.0,87647.0,0.00014011]
[1766608010698,0.12469,87654.0,87647.0,0.00014011]
[1766608013572,0.05704249,87654.0,87647.0,0.00014011]
[1766608013862,0.12469,87653.0,87647.0,0.00014011]
[1766608014491,0.13609862,87653.0,87647.0,0.00014011]
[1766608014691,0.12469,87653.0,87647.0,0.00014011]